bitfinex-derivatives/quotes_SOLF0:USTF0_20250830
["timestamp","ask_amount","ask_price","bid_price","bid_amount"]
[1756551171240,2.42277027,202.32,202.26,4.15564803]
[1756551171435,2.42277027,202.32,202.28,7.25]
[1756551171740,3.39277027,202.32,202.27,4.15564803]
[1756551171932,3.39277027,202.32,202.28,7.25]
[1756551172136,3.39277027,202.32,202.27,4.15564803]
[1756551173140,334.70277027,202.4,202.27,4.15564803]
[1756551173341,334.70277027,202.4,202.25,5.42857632]
[1756551173342,2.42277027,202.35,202.3,4.15564803]
[1756551173541,2.42277027,202.35,202.31,7.25]
[1756551173542,0.97,202.34,202.31,7.25]
[1756551174043,0.97,202.34,202.3,7.25]
[1756551174247,0.97,202.34,202.29,4.15564803]
[1756551174746,0.97,202.34,202.3,7.25]
[1756551175138,0.97,202.34,202.29,4.15564803]
[1756551175538,2.42277027,202.35,202.29,4.15564803]
[1756551175742,2.42277027,202.35,202.3,4.15564803]
[1756551176345,2.42277027,202.35,202.31,7.25]
[1756551176541,2.42277027,202.35,202.3,4.15564803]
[1756551178046,2.42277027,202.35,202.31,7.25]
[1756551178248,121.6,202.39,202.3,4.15564803]
[1756551178548,2.42277027,202.36,202.3,4.15564803]
[1756551180055,2.42277027,202.36,202.31,7.25]
[1756551180450,2.42277027,202.36,202.32,7.25]
[1756551180655,124.99277027,202.39,202.33,7.25]
[1756551180856,0.97,202.44,202.33,7.25]
[1756551181156,2.42277027,202.42,202.35,7.25]
[1756551182056,0.97,202.41,202.35,7.25]
[1756551182657,2.42277027,202.42,202.35,7.25]
[1756551185059,121.58,202.43,202.35,7.25]
[1756551185258,124.00277027,202.43,202.35,7.25]
[1756551185758,0.97,202.42,202.35,7.25]
[1756551190266,121.58,202.43,202.35,7.25]
[1756551190460,2.42277027,202.44,202.35,11.40564803]
[1756551190665,332.24,202.45,202.35,11.40564803]
[1756551190666,453.76,202.45,202.37,7.46]
[1756551191067,121.52,202.45,202.37,7.46]
[1756551192070,124.91277027,202.45,202.37,7.46]
[1756551192569,0.97,202.41,202.37,7.46]
[1756551192870,0.97,202.4,202.37,7.46]
[1756551193064,2.42277027,202.42,202.33,7.46]
[1756551194866,2.42277027,202.42,202.33,9.88277027]
[1756551195071,0.97,202.43,202.34,7.46]
[1756551198674,122.38003435,202.45,202.34,7.46]
[1756551198981,2.42277027,202.44,202.34,7.46]
[1756551204382,2.42277027,202.44,202.35,7.46]
[1756551207384,1.54708676,202.4,202.35,7.46]
[1756551210889,1.54708676,202.42,202.37,7.46]
[1756551211092,1.54708676,202.44,202.38,1.54708676]
[1756551211287,121.52,202.45,202.39,7.46]
[1756551214093,3.38621445,202.48,202.4,7.46]
[1756551215993,0.97,202.48,202.4,7.46]
[1756551216199,3.38621445,202.48,202.4,7.46]
[1756551218699,3.38621445,202.48,202.41,7.58]
[1756551222994,3.38621445,202.48,202.41,11.72825052]
[1756551223803,3.38621445,202.48,202.42,7.58]
[1756551224499,2.41621445,202.48,202.4,4.14825052]
[1756551224696,2.41621445,202.45,202.39,11.72825052]
[1756551224900,2.41621445,202.45,202.39,4.14825052]
[1756551225400,0.97,202.46,202.4,7.58]
[1756551229603,2.41621445,202.47,202.4,7.58]
[1756551229798,3.38621445,202.5,202.41,4.14825052]
[1756551230003,3.38621445,202.5,202.42,7.58]
[1756551232406,3.38621445,202.5,202.42,11.72825052]
[1756551232905,3.38621445,202.5,202.42,4.14825052]
[1756551233106,3.38621445,202.5,202.43,7.58]
[1756551235307,1.54590609,202.49,202.43,7.58]
[1756551239110,1.54590609,202.47,202.41,4.1499692]
[1756551239306,2.51590609,202.45,202.42,7.58]
[1756551239907,0.97,202.42,202.38,4.1499692]
[1756551240107,2.51590609,202.41,202.38,7.58]
[1756551240513,1.54590609,202.39,202.35,4.1499692]
[1756551240810,1.54590609,202.39,202.34,7.58]
[1756551241010,1.54590609,202.41,202.36,1.54590609]
[1756551241311,5.83,202.46,202.39,7.58]
[1756551243115,4.86,202.46,202.39,4.1499692]
[1756551243314,4.86,202.46,202.4,7.58]
[1756551244219,4.86,202.46,202.41,7.58]
[1756551244813,4.86,202.46,202.4,4.1499692]
[1756551245316,4.86,202.46,202.41,7.58]
[1756551246610,4.86,202.46,202.42,7.58]
[1756551246913,2.41642779,202.44,202.39,11.7299692]
[1756551247114,2.41642779,202.44,202.39,7.58]
[1756551247115,0.97,202.43,202.39,7.58]
[1756551248011,0.97,202.42,202.39,7.58]
[1756551249913,0.97,202.43,202.36,11.7499692]
[1756551250618,2.41642779,202.41,202.36,4.1499692]
[1756551250817,3.38642779,202.41,202.37,7.6]
[1756551251507,3.38642779,202.41,202.35,4.1499692]
[1756551252112,3.38642779,202.41,202.36,7.6]
[1756551252312,3.38642779,202.41,202.35,4.1499692]
[1756551252518,0.97,202.4,202.37,7.6]
[1756551252719,0.97,202.37,202.32,4.1499692]
[1756551252918,0.97,202.36,202.33,7.6]
[1756551253413,0.97,202.36,202.31,7.6]
[1756551253612,0.97,202.36,202.3,4.1499692]
[1756551253813,2.41642779,202.38,202.3,4.1499692]
[1756551254014,2.41642779,202.38,202.31,7.6]
[1756551256320,0.97,202.31,202.26,4.1499692]
[1756551256515,2.41642779,202.32,202.25,7.6]
[1756551256716,3.38642779,202.35,202.26,7.6]
[1756551257721,2.41642779,202.35,202.26,7.6]
[1756551258618,2.41642779,202.35,202.26,11.7499692]
[1756551258922,0.97,202.37,202.26,4.1499692]
[1756551259223,0.97,202.37,202.27,7.6]
[1756551259425,3.38642779,202.37,202.27,7.6]
[1756551263026,0.97,202.37,202.27,7.6]
[1756551263219,2.41642779,202.35,202.27,7.6]
[1756551264716,3.38642779,202.35,202.27,7.6]
[1756551268126,0.97,202.39,202.27,7.6]
[1756551268325,2.41642779,202.36,202.27,7.6]
[1756551270225,0.97,202.39,202.27,7.6]
[1756551270424,2.41642779,202.37,202.27,7.6]
[1756551276030,3.38642779,202.37,202.27,7.6]
[1756551276231,3.38642779,202.34,202.27,7.6]
[1756551277433,1.54857408,202.3,202.26,7.68]
[1756551278231,1.54857408,202.3,202.25,1.54857408]
[1756551278832,1.54857408,202.3,202.26,7.68]
[1756551279334,2.41960377,202.33,202.26,7.68]
[1756551283834,0.96,202.29,202.24,4.14079971]
[1756551284036,0.96,202.29,202.23,7.68]
[1756551287543,0.96,202.26,202.23,7.68]
[1756551288545,0.96,202.26,202.19,4.14313552]
[1756551288748,0.96,202.26,202.2,7.68]
[1756551291637,2.41960377,202.27,202.2,7.68]
[1756551291837,2.41960377,202.27,202.18,2.41960377]
[1756551291838,2.41960377,202.3,202.22,7.68]
[1756551292038,2.41960377,202.33,202.24,7.68]
[1756551292242,2.41960377,202.33,202.21,7.94067005]
[1756551292243,2.41960377,202.33,202.25,4.14313552]
[1756551292450,2.41960377,202.33,202.26,7.68]
[1756551295246,2.41960377,202.33,202.26,4.14915979]
[1756551295451,2.41960377,202.33,202.27,7.68]
[1756551296347,2.41960377,202.33,202.28,7.68]
[1756551296655,2.41960377,202.36,202.3,7.68]
[1756551305661,0.96,202.38,202.3,7.68]
[1756551305861,2.41960377,202.37,202.3,7.68]
[1756551307459,0.96,202.38,202.3,7.68]
[1756551307665,87.88985738,202.39,202.32,4.14915979]
[1756551308055,87.88985738,202.39,202.33,11.81915979]
[1756551308271,87.88985738,202.39,202.34,7.67]
[1756551308660,123.67960377,202.43,202.34,7.67]
[1756551309166,0.97,202.42,202.34,7.67]
[1756551310068,3.38960377,202.4,202.34,7.67]
[1756551314164,0.97,202.35,202.31,11.81915979]
[1756551314365,0.97,202.35,202.31,7.67]
[1756551315169,0.97,202.35,202.3,4.14915979]
[1756551315376,2.41960377,202.37,202.31,7.67]
[1756551317974,0.97,202.36,202.31,7.67]
[1756551318163,0.97,202.35,202.31,7.67]
[1756551318369,0.97,202.35,202.29,7.67]
[1756551318772,2.41960377,202.37,202.29,7.67]
[1756551321771,2.41960377,202.4,202.3,4.14915979]
[1756551322072,2.41960377,202.4,202.31,7.67]
[1756551323874,2.41960377,202.4,202.31,11.81915979]
[1756551324075,2.41960377,202.4,202.32,7.67]
[1756551328476,0.97,202.42,202.32,7.67]
[1756551328679,0.97,202.42,202.33,7.67]
[1756551331981,0.97,202.42,202.33,11.81915979]
[1756551332181,0.97,202.42,202.34,7.67]
[1756551333384,2.41960377,202.43,202.34,7.67]
[1756551333685,2.41960377,202.43,202.35,7.67]
[1756551333880,3.37960377,202.43,202.35,7.67]
[1756551335280,3.37960377,202.43,202.36,7.67]
[1756551340285,0.96,202.42,202.36,7.67]
[1756551345288,1.54728844,202.39,202.36,7.67]
[1756551345483,1.54728844,202.39,202.35,7.34]
[1756551346893,0.96,202.42,202.35,7.34]
[1756551347193,1.54728844,202.39,202.35,4.14915979]
[1756551347489,1.54728844,202.39,202.36,7.34]
[1756551347689,1.54728844,202.39,202.35,4.14915979]
[1756551347892,1.54728844,202.39,202.36,7.34]
[1756551348089,1.54728844,202.39,202.35,4.14915979]
[1756551349593,1.54728844,202.39,202.36,7.34]
[1756551349893,1.54728844,202.39,202.35,4.15907502]
[1756551350290,1.54728844,202.39,202.36,7.34]
[1756551350490,1.54728844,202.39,202.35,4.15907502]
[1756551351491,1.54728844,202.39,202.36,7.34]
[1756551351994,1.54728844,202.39,202.35,4.15907502]
[1756551352194,2.50728844,202.39,202.36,7.34]
[1756551352394,1.54728844,202.39,202.35,4.15907502]
[1756551352593,1.54728844,202.39,202.36,7.34]
[1756551352792,1.54728844,202.39,202.35,4.15907502]
[1756551353889,1.54728844,202.39,202.36,7.34]
[1756551354093,1.54728844,202.39,202.35,4.15907502]
[1756551354894,1.54728844,202.39,202.36,7.34]
[1756551355696,1.54728844,202.39,202.35,4.15907502]
[1756551356793,1.54728844,202.39,202.36,7.34]
[1756551356998,1.54728844,202.39,202.35,4.15907502]
[1756551357200,1.54728844,202.39,202.36,7.34]
[1756551357701,1.54728844,202.39,202.35,4.15907502]
[1756551358403,1.54728844,202.39,202.36,7.34]
[1756551359400,1.54728844,202.39,202.35,4.15907502]
[1756551359799,1.54728844,202.39,202.36,7.34]
[1756551359998,1.54728844,202.39,202.35,4.15907502]
[1756551360405,1.54728844,202.39,202.36,7.34]
[1756551360604,1.54728844,202.39,202.35,4.15907502]
[1756551361903,1.54728844,202.39,202.36,7.34]
[1756551362106,1.54728844,202.39,202.35,4.15907502]
[1756551362410,1.54728844,202.39,202.36,7.34]
[1756551362710,1.54728844,202.39,202.35,4.15907502]
[1756551363102,1.54728844,202.39,202.36,7.34]
[1756551363309,1.54728844,202.39,202.36,4.15907502]
[1756551364212,1.54728844,202.39,202.37,7.34]
[1756551364504,1.54728844,202.39,202.36,4.15907502]
[1756551364702,1.54728844,202.39,202.37,7.34]
[1756551364905,1.54728844,202.39,202.36,4.15907502]
[1756551365801,1.54728844,202.39,202.37,7.34]
[1756551366005,1.54728844,202.39,202.36,4.15907502]
[1756551366202,1.54728844,202.39,202.38,7.34]
[1756551375616,0.96,202.45,202.38,7.34]
[1756551375913,1.54728844,202.42,202.39,4.15907502]
[1756551376318,1.54728844,202.42,202.4,8.0]
[1756551376526,1.54728844,202.42,202.39,4.15907502]
[1756551377417,0.86011938,202.46,202.4,8.0]
[1756551377621,1.54728844,202.47,202.42,4.15907502]
[1756551377819,2.50728844,202.47,202.43,8.0]
[1756551378014,2.50728844,202.47,202.42,4.15907502]
[1756551378219,2.50728844,202.47,202.41,4.15907502]
[1756551378520,2.50728844,202.47,202.42,8.0]
[1756551378820,2.50728844,202.47,202.42,4.15907502]
[1756551379219,2.50728844,202.47,202.42,8.0]
[1756551379522,2.50728844,202.47,202.41,4.15907502]
[1756551379916,2.50728844,202.47,202.42,8.0]
[1756551380321,2.50728844,202.47,202.41,4.15907502]
[1756551380920,2.50728844,202.47,202.42,8.0]
[1756551381220,2.50728844,202.47,202.41,4.15907502]
[1756551381622,1.54728844,202.45,202.42,8.0]
[1756551381822,1.54728844,202.45,202.41,4.15907502]
[1756551383224,1.54728844,202.45,202.41,8.0]
[1756551384623,1.54728844,202.45,202.41,4.15907502]
[1756551384816,1.54728844,202.45,202.42,8.0]
[1756551385213,1.54728844,202.45,202.41,4.15907502]
[1756551385618,1.54728844,202.45,202.4,1.54728844]
[1756551385619,1.54728844,202.5,202.45,8.0]
[1756551385921,1.54728844,202.52,202.46,1.54728844]
[1756551386122,1.54728844,202.52,202.47,8.0]
[1756551386325,1.54728844,202.52,202.46,1.54728844]
[1756551386624,1.54728844,202.52,202.47,8.0]
[1756551387220,1.54728844,202.52,202.46,1.54728844]
[1756551387820,0.96,202.55,202.49,8.0]
[1756551388020,1.54728844,202.53,202.49,8.0]
[1756551389020,1.54728844,202.53,202.48,1.54728844]
[1756551389719,1.54728844,202.53,202.49,8.0]
[1756551390020,1.54728844,202.53,202.48,1.54728844]
[1756551391423,1.54728844,202.53,202.49,8.0]
[1756551391623,1.54728844,202.53,202.48,1.54728844]
[1756551392025,1.54728844,202.53,202.49,8.0]
[1756551393028,1.54728844,202.53,202.48,1.54728844]
[1756551393219,1.54728844,202.53,202.49,8.0]
[1756551393821,1.54728844,202.59,202.52,1.54728844]
[1756551394024,1.54728844,202.59,202.53,8.0]
[1756551394224,1.54728844,202.57,202.53,8.0]
[1756551394428,1.54728844,202.57,202.52,1.54728844]
[1756551394627,1.54728844,202.57,202.53,8.0]
[1756551395426,3.37299447,202.61,202.53,8.0]
[1756551402131,2.41299447,202.61,202.53,8.0]
[1756551402332,457.12232799,202.64,202.53,8.0]
[1756551402527,0.95,202.63,202.53,8.0]
[1756551405431,0.95,202.63,202.53,2.41299447]
[1756551405633,0.95,202.63,202.54,7.83]
[1756551416745,452.9,202.64,202.54,7.83]
[1756551416939,120.86,202.64,202.54,7.83]
[1756551417436,1.54349971,202.63,202.59,7.83]
[1756551417635,2.49349971,202.63,202.58,1.54349971]
[1756551418437,2.49349971,202.63,202.59,7.83]
[1756551419442,1.54349971,202.63,202.59,7.83]
[1756551421246,2.49349971,202.66,202.61,7.83]
[1756551423848,2.49349971,202.66,202.6,1.54349971]
[1756551424048,2.49349971,202.66,202.61,7.83]
[1756551425047,0.95,202.66,202.59,7.83]
[1756551425349,2.49349971,202.66,202.61,7.83]
[1756551425648,2.49349971,202.66,202.6,1.54349971]
[1756551425843,1.54349971,202.66,202.61,7.83]
[1756551427347,1.54349971,202.68,202.62,1.54349971]
[1756551427653,1.54349971,202.68,202.63,7.81]
[1756551428340,0.95,202.69,202.63,7.81]
[1756551428546,2.49349971,202.69,202.63,7.81]
[1756551429954,1.54349971,202.67,202.59,7.81]
[1756551430153,1.54349971,202.65,202.61,7.81]
[1756551430448,2.49349971,202.65,202.61,7.81]
[1756551430653,1.54349971,202.65,202.59,7.81]
[1756551430953,0.95,202.66,202.59,7.81]
[1756551431155,1.54349971,202.65,202.59,7.81]
[1756551434953,0.95,202.66,202.59,7.81]
[1756551435253,2.49349971,202.66,202.59,7.81]
[1756551437058,2.49349971,202.66,202.6,1.54349971]
[1756551437356,2.49349971,202.66,202.61,7.81]
[1756551437649,2.49349971,202.66,202.6,1.54349971]
[1756551437849,1.54349971,202.66,202.61,7.81]
[1756551438151,0.95,202.69,202.61,7.81]
[1756551438356,1.54349971,202.67,202.61,7.81]
[1756551439751,1.54349971,202.67,202.63,7.81]
[1756551439950,1.54349971,202.67,202.62,1.54349971]
[1756551440153,1.54349971,202.67,202.63,7.81]
[1756551440755,1.54349971,202.68,202.63,7.81]
[1756551440954,1.54349971,202.68,202.62,1.54349971]
[1756551441155,1.54349971,202.68,202.63,7.81]
[1756551441550,1.54349971,202.68,202.62,1.54349971]
[1756551442154,1.54349971,202.68,202.63,7.81]
[1756551442358,1.54349971,202.68,202.62,1.54349971]
[1756551442555,1.54349971,202.68,202.63,7.81]
[1756551442960,1.54349971,202.68,202.62,1.54349971]
[1756551443160,1.54349971,202.68,202.63,7.81]
[1756551443357,1.54349971,202.68,202.62,1.54349971]
[1756551443558,1.54349971,202.68,202.63,7.81]
[1756551443955,1.54349971,202.68,202.62,1.54349971]
[1756551444155,1.54349971,202.68,202.63,7.81]
[1756551444357,1.54349971,202.68,202.62,1.54349971]
[1756551444563,1.54349971,202.68,202.63,7.81]
[1756551444957,1.54349971,202.68,202.62,1.54349971]
[1756551445156,1.54349971,202.68,202.63,7.81]
[1756551445367,1.54349971,202.68,202.62,1.54349971]
[1756551446066,1.54349971,202.68,202.63,7.81]
[1756551447163,1.54349971,202.68,202.62,1.54349971]
[1756551447768,1.54349971,202.68,202.63,7.81]
[1756551448066,1.54349971,202.68,202.62,7.81]
[1756551448370,1.54349971,202.68,202.62,9.35349971]
[1756551454470,0.95,202.69,202.62,9.35349971]
[1756551454671,1.54349971,202.68,202.62,9.35349971]
[1756551455177,1.54349971,202.68,202.62,5.66845703]
[1756551455876,1.54349971,202.68,202.63,7.81]
[1756551456070,1.54349971,202.68,202.62,5.66845703]
[1756551456271,1.54349971,202.68,202.63,7.81]
[1756551456974,1.54349971,202.68,202.63,7.5]
[1756551457878,1.54349971,202.68,202.62,5.66845703]
[1756551458277,1.54349971,202.68,202.63,7.5]
[1756551458479,1.54349971,202.68,202.62,5.66845703]
[1756551458673,1.54349971,202.68,202.63,7.5]
[1756551458870,1.54349971,202.68,202.63,11.62495732]
[1756551459183,2.49349971,202.68,202.64,7.5]
[1756551459370,2.49349971,202.68,202.63,4.12495732]
[1756551460074,1.54349971,202.69,202.64,7.5]
[1756551460279,1.54349971,202.69,202.64,9.04349971]
[1756551460978,1.54349971,202.69,202.64,5.66845703]
[1756551462171,1.54349971,202.69,202.65,7.5]
[1756551462475,1.54349971,202.69,202.64,4.12495732]
[1756551462677,1.54349971,202.69,202.65,7.5]
[1756551462880,1.54349971,202.69,202.64,4.12495732]
[1756551463280,1.54349971,202.69,202.66,7.5]
[1756551463881,1.54349971,202.69,202.65,4.15291651]
[1756551464077,0.95,202.71,202.65,4.15291651]
[1756551464282,1.54349971,202.69,202.65,4.15291651]
[1756551464477,1.54349971,202.69,202.66,7.5]
[1756551464885,1.54349971,202.69,202.65,4.15291651]
[1756551465285,1.54349971,202.69,202.66,7.5]
[1756551465678,1.54349971,202.69,202.65,4.15291651]
[1756551465878,1.54349971,202.69,202.66,7.5]
[1756551466282,1.54349971,202.69,202.65,4.15291651]
[1756551466789,1.54349971,202.7,202.65,4.15291651]
[1756551466985,2.49349971,202.7,202.65,4.15291651]
[1756551467890,2.49349971,202.7,202.66,7.5]
[1756551468486,2.49349971,202.7,202.65,4.15291651]
[1756551468691,2.49349971,202.7,202.66,7.5]
[1756551469189,2.49349971,202.7,202.65,4.15291651]
[1756551469390,2.49349971,202.7,202.66,7.5]
[1756551469690,2.49349971,202.7,202.65,4.15291651]
[1756551470188,2.49349971,202.7,202.66,7.5]
[1756551470581,2.49349971,202.7,202.65,4.15291651]
[1756551470788,2.49349971,202.7,202.66,7.5]
[1756551470986,2.49349971,202.7,202.65,4.15291651]
[1756551471282,2.49349971,202.7,202.66,7.5]
[1756551472385,2.49349971,202.7,202.65,4.15291651]
[1756551472585,1.54349971,202.7,202.66,11.65291651]
[1756551472786,1.54349971,202.7,202.67,7.5]
[1756551474894,1.54349971,202.72,202.67,7.5]
[1756551475796,1.54349971,202.72,202.66,4.15291651]
[1756551475993,0.95,202.75,202.67,7.5]
[1756551476291,2.49349971,202.72,202.68,7.5]
[1756551476689,2.49349971,202.72,202.67,4.15291651]
[1756551477193,2.49349971,202.72,202.68,7.5]
[1756551477786,0.95,202.72,202.67,4.15291651]
[1756551477988,2.49349971,202.72,202.67,4.15291651]
[1756551478888,2.49349971,202.72,202.68,7.5]
[1756551479089,2.49349971,202.72,202.67,4.15291651]
[1756551479290,2.49349971,202.72,202.68,7.5]
[1756551479494,2.49349971,202.72,202.67,4.15291651]
[1756551479697,2.49349971,202.72,202.68,7.5]
[1756551479896,2.49349971,202.72,202.67,4.15291651]
[1756551480297,2.49349971,202.72,202.68,7.5]
[1756551480597,2.49349971,202.72,202.67,4.15291651]
[1756551481097,2.49349971,202.72,202.68,7.5]
[1756551481593,2.49349971,202.72,202.67,4.15291651]
[1756551481803,2.49349971,202.72,202.68,7.5]
[1756551482491,2.49349971,202.72,202.67,4.15291651]
[1756551482990,2.49349971,202.72,202.68,7.5]
[1756551483194,2.49349971,202.72,202.67,4.15291651]
[1756551483599,0.95,202.72,202.67,4.15291651]
[1756551483897,2.49349971,202.72,202.67,5.69641622]
[1756551484298,2.49349971,202.72,202.68,7.5]
[1756551484491,2.49349971,202.72,202.67,5.69641622]
[1756551484899,2.49349971,202.72,202.68,4.15291651]
[1756551485105,1.54349971,202.72,202.69,7.5]
[1756551485699,1.54349971,202.72,202.68,4.15291651]
[1756551486094,1.54349971,202.72,202.69,7.5]
[1756551486302,1.54349971,202.72,202.68,4.15291651]
[1756551486701,1.54349971,202.72,202.69,7.5]
[1756551486893,1.54349971,202.72,202.68,4.15291651]
[1756551487603,1.54349971,202.72,202.69,7.3]
[1756551487904,1.54349971,202.72,202.68,4.15291651]
[1756551488403,1.54349971,202.72,202.69,7.3]
[1756551488604,1.54349971,202.72,202.68,4.15291651]
[1756551489103,1.54349971,202.72,202.69,7.3]
[1756551489791,1.54349971,202.72,202.68,4.15291651]
[1756551490203,0.95,202.75,202.69,7.3]
[1756551490399,1.54349971,202.72,202.68,4.15291651]
[1756551491805,1.54349971,202.72,202.69,7.3]
[1756551492002,1.54349971,202.72,202.68,4.15291651]
[1756551492394,1.54349971,202.72,202.69,7.3]
[1756551492598,1.54349971,202.72,202.68,4.15291651]
[1756551492799,1.54349971,202.72,202.69,7.3]
[1756551493200,1.54349971,202.72,202.68,4.15291651]
[1756551494405,1.54349971,202.72,202.69,7.3]
[1756551494606,1.54349971,202.72,202.68,4.15291651]
[1756551495309,0.95,202.75,202.68,4.15291651]
[1756551495608,1.54349971,202.73,202.69,7.3]
[1756551496404,1.54349971,202.73,202.68,4.15291651]
[1756551496805,2.48349971,202.73,202.69,7.3]
[1756551497806,2.48349971,202.73,202.68,4.15291651]
[1756551498010,2.48349971,202.73,202.69,7.3]
[1756551498504,2.48349971,202.73,202.68,4.15291651]
[1756551498699,2.48349971,202.73,202.69,7.3]
[1756551498896,2.48349971,202.73,202.68,4.15291651]
[1756551499505,2.48349971,202.73,202.69,7.3]
[1756551499703,2.48349971,202.73,202.68,4.15291651]
[1756551500302,0.96,202.72,202.68,4.15291651]
[1756551500602,0.96,202.72,202.69,7.3]
[1756551500798,0.96,202.72,202.68,4.15291651]
[1756551501703,0.96,202.72,202.69,7.3]
[1756551501907,0.96,202.72,202.68,4.15291651]
[1756551502109,0.96,202.72,202.69,7.3]
[1756551502507,0.96,202.72,202.68,4.15291651]
[1756551503412,0.96,202.72,202.69,7.3]
[1756551503610,0.96,202.72,202.68,4.15291651]
[1756551503914,0.96,202.72,202.69,7.3]
[1756551504306,0.96,202.72,202.68,4.15291651]
[1756551504705,1.54349971,202.73,202.69,7.3]
[1756551504911,1.54349971,202.73,202.68,4.15291651]
[1756551505209,1.54349971,202.73,202.69,7.3]
[1756551505510,1.54349971,202.73,202.68,4.15291651]
[1756551505813,2.50349971,202.73,202.68,4.15291651]
[1756551506006,2.50349971,202.73,202.69,7.3]
[1756551506404,2.50349971,202.73,202.68,4.15291651]
[1756551506608,1.54349971,202.72,202.68,4.15291651]
[1756551506815,1.54349971,202.72,202.69,7.3]
[1756551507113,1.54349971,202.72,202.68,4.15291651]
[1756551507311,1.54349971,202.72,202.69,4.15291651]
[1756551507613,1.54349971,202.72,202.7,7.3]
[1756551508014,1.54349971,202.72,202.69,4.15291651]
[1756551508214,1.54349971,202.72,202.7,7.3]
[1756551508808,1.54349971,202.72,202.69,4.15291651]
[1756551509015,1.54349971,202.72,202.7,7.3]
[1756551509409,1.54349971,202.72,202.69,4.15291651]
[1756551509716,1.54349971,202.72,202.7,7.3]
[1756551510221,1.54349971,202.72,202.69,4.15291651]
[1756551510512,1.54349971,202.72,202.7,7.3]
[1756551510720,1.54349971,202.72,202.69,4.15291651]
[1756551511107,1.54349971,202.72,202.7,7.3]
[1756551511717,1.54349971,202.72,202.69,4.15291651]
[1756551512211,1.54349971,202.72,202.7,7.3]
[1756551512410,1.54349971,202.72,202.69,4.15291651]
[1756551512811,1.54349971,202.72,202.7,7.3]
[1756551513215,1.54349971,202.72,202.69,4.15291651]
[1756551513416,1.54349971,202.72,202.69,4.15560523]
[1756551513717,0.96,202.73,202.7,7.3]
[1756551513913,2.50349971,202.73,202.69,4.15560523]
[1756551514112,0.96,202.7,202.68,4.15560523]
[1756551514315,0.96,202.68,202.66,7.3]
[1756551514508,1.54349971,202.67,202.66,7.3]
[1756551516118,0.85870799,202.75,202.65,4.15560523]
[1756551516312,1.54349971,202.68,202.66,7.3]
[1756551516714,1.54349971,202.68,202.65,4.15560523]
[1756551517119,2.48349971,202.68,202.66,7.3]
[1756551518316,1.54349971,202.68,202.66,7.39]
[1756551519015,0.94,202.67,202.65,4.15560523]
[1756551519220,1.54349971,202.66,202.65,7.39]
[1756551522219,0.94,202.74,202.65,7.39]
[1756551522419,0.85870799,202.75,202.65,4.15560523]
[1756551522420,1.54349971,202.69,202.65,4.15560523]
[1756551522921,1.54349971,202.69,202.66,11.54560523]
[1756551523120,1.54349971,202.69,202.66,4.15560523]
[1756551523422,1.54349971,202.69,202.67,7.39]
[1756551524520,1.54349971,202.69,202.66,4.15560523]
[1756551524914,1.54349971,202.69,202.67,7.39]
[1756551525116,1.54349971,202.69,202.66,4.15560523]
[1756551525316,1.54349971,202.69,202.65,4.15560523]
[1756551525518,1.54349971,202.69,202.66,4.15560523]
[1756551526114,1.54349971,202.69,202.67,7.39]
[1756551526318,1.54349971,202.69,202.66,4.15560523]
[1756551527625,1.54349971,202.69,202.67,7.39]
[1756551527927,0.85870799,202.75,202.67,7.39]
[1756551528115,1.54349971,202.73,202.68,7.39]
[1756551529125,0.94,202.76,202.68,5.69910494]
[1756551529325,1.54349971,202.74,202.69,7.39]
[1756551531421,2.48349971,202.74,202.69,7.39]
[1756551539931,0.94,202.74,202.69,7.39]
[1756551540129,1.54349971,202.73,202.69,7.39]
[1756551540527,1.54349971,202.71,202.69,7.39]
[1756551540828,0.94,202.7,202.68,7.39]
[1756551541028,1.54349971,202.69,202.68,7.39]
[1756551543326,0.94,202.71,202.68,7.39]